Cogmind - Beta 14 @@@ ROGUE MODE // 2024.12.10 @ 15:18:45 Player: K.Ioz Result: Smashed by cave-in Performance ------------- Evolutions (0) 0 Regions Visited (2) 400 Robots Destroyed (24) 120 Value Destroyed (674) 674 Prototype IDs (0) 0 Alien Tech Used (0) 0 Bonus (0) 0 TOTAL SCORE: 1194 Bonus ------- None Cogmind --------- Core Integrity 0/250 Matter 271/300 Energy 125/125 System Corruption 6% Temperature Cool (0) Movement Treading (160) Location -10/Mines Parts ------- > --- POWER (1) -------- Light Ion Engine > --- PROPULSION (2) --- Light Treads > --- UTILITY (2) ------ Improved Heat Sink Medium Storage Unit > --- WEAPON (2) ------- Heavy Assault Rifle Mining Claw > --- INVENTORY (10) --- Ion Engine Ion Engine Light Treads Light Treads Light Treads Large Matter Pod (150) Beam Rifle Particle Gun Beam Cannon Peak State ------------ > --- POWER ------------ Light Ion Engine > --- PROPULSION ------- Light Treads Light Treads > --- UTILITY ---------- Improved Heat Sink Medium Storage Unit > --- WEAPON ----------- Beam Rifle Heavy Assault Rifle > --- INVENTORY -------- Ion Engine Ion Engine Light Treads Light Treads Light Treads Large Matter Pod Structural Scanner Particle Gun Beam Cannon Mining Claw [Rating: 12] Favorites ----------- Power Ion Engine Engine Ion Engine Propulsion Light Treads Treads Light Treads Leg Aluminum Leg Utility Medium Storage Unit Device Improved Heat Sink Storage Medium Storage Unit Processor Transport Network Coupler Weapon Assault Rifle Energy Gun Particle Gun Energy Cannon Beam Cannon Ballistic Gun Assault Rifle Slashing Weapon Mining Claw Build | -11 -10 -10 ------- Run | Yrd Mat Min Slots Evolved . | . . . Power . | . . . Propulsion . | . . . Utility . | . . . Weapon . | . . . Parts Attached 34 | 6 17 11 Power 3 | 1 1 1 Engine 3 | 1 1 1 Core . | . . . Reactor . | . . . Propulsion 12 | 2 7 3 Treads 10 | 2 5 3 Leg 2 | . 2 . Wheel . | . . . Hover . | . . . Flight . | . . . Utility 9 | 1 4 4 Device 6 | . 2 4 Storage 2 | 1 1 . Processor 1 | . 1 . Hackware . | . . . Protection . | . . . Artifact . | . . . Weapon 10 | 2 5 3 Energy Gun 3 | 1 1 1 Energy Cannon 2 | . 2 . Ballistic Gun 3 | 1 1 1 Ballistic Cannon . | . . . Launcher . | . . . Special Weapon . | . . . Impact Weapon . | . . . Slashing Weapon 2 | . 1 1 Piercing Weapon . | . . . Special Melee Weapon . | . . . Unidentified Prototypes . | . . . Parts Lost 6 | . 1 5 Power . | . . . Propulsion 4 | . 1 3 Utility 1 | . . 1 Weapon 1 | . . 1 Highest Loss Streak 2 | . 1 2 To Critical Strikes . | . . . Average Slot Usage (%) 97 | . 96 99 Engine 14 | . 14 14 Treads 25 | . 22 28 Leg 2 | . 4 . Device 11 | . 9 13 Storage 14 | . 14 14 Energy Gun 4 | . 9 . Energy Cannon 3 | . 4 3 Ballistic Gun 13 | . 14 13 Slashing Weapon 5 | . . 10 Peak Build Rating 12 | 6 9 12 Average Rating 9 | 4 8 10 On Entrance 4 | . 6 8 Naked Turns . | . . . Heaviest Build 21 | 14 21 21 Greatest Support 40 | 40 40 40 Greatest Overweight (x) . | . . . Average Overweight (x) . | . . . Largest Inventory Capacity 10 | 8 10 10 Average Capacity 9 | 6 8 10 Most Carried 10 | 4 10 10 Average Carried 8 | 2 7 9 Final Capacity 10 | 8 10 10 Final Carried 9 | 4 9 9 Class Distribution -------------------- 52% | Mutant 47% | Scavenger-Mutant Dominant Class ---------------- Mutant | -10/Materials Scavenger-Mutant | -10/Mines Resources | -11 -10 -10 ----------- Run | Yrd Mat Min Matter Collected 882 | 233 435 214 Remotely . | . . . Salvage Created 891 | . 563 328 Parts 61 | . 35 26 Haulers Intercepted 2 | . 2 . Recyclers Shooed . | . . . Parts Field Recycled . | . . . Retrieved Matter . | . . . Parts Self-Destructed . | . . . Prevented . | . . . Kills | -11 -10 -10 ------- Run | Yrd Mat Min Combat Hostiles Destroyed 20 | . 12 8 Guns 13 | . 11 2 Cannons 7 | . 1 6 Classes Destroyed 6 | . 4 2 Tunneler 1 | . . 1 Hauler 2 | . 2 . Watcher 1 | . 1 . Swarmer 5 | . 3 2 Grunt 13 | . 9 4 Sentry 2 | . . 2 Best Kill Streak 3 | . 3 3 Combat Bots Only 3 | . 3 2 Max Kills in Single Turn 2 | . 2 1 Gunslinging 1 | . 1 . Exploded . | . . . Melee . | . . . Uniques/NPCs Destroyed . | . . . Combat | -11 -10 -10 -------- Run | Yrd Mat Min Hostile Shots Fired 128 | . 87 41 Missed 35 | . 24 11 Damage Taken 1547 | . 647 900 Core 296 | . 102 194 Absorbed by Shields . | . . . Core Remaining (%) 100 | 100 . . Volleys Fired 80 | . 53 27 Largest 2 | . 2 2 Hottest 85 | . 85 80 Shots Fired 160 | . 106 54 Gun 112 | . 85 27 Cannon 48 | . 21 27 Launcher . | . . . Special . | . . . Kinetic 80 | . 53 27 Thermal 80 | . 53 27 Explosive . | . . . Electromagnetic . | . . . Robot Hit Streak 11 | . 11 8 Robot Miss Streak 4 | . 4 2 Penetration Max . | . . . Secondary Targets 1 | . 1 . Max Gunslinging Chain 1 | . 1 . Shots Hit Robots 104 | . 67 37 Core Hits 42 | . 26 16 Critical Kills . | . . . Critical Parts Destroyed . | . . . Critical Strikes . | . . . Melee Attacks 7 | . 3 4 Impact . | . . . Slashing 7 | . 3 4 Piercing . | . . . Sneak Attacks . | . . . Combat Hostiles . | . . . Follow-up Attacks . | . . . Damage Inflicted 1533 | . 968 565 Guns 957 | . 705 252 Cannons 576 | . 263 313 Explosions . | . . . Melee . | . . . Ramming . | . . . Kinetic 725 | . 473 252 Thermal 808 | . 495 313 Explosive . | . . . Electromagnetic . | . . . Impact . | . . . Slashing . | . . . Piercing . | . . . Highest Corruption 6 | . . 6 Average Corruption 2 | . . 2 Corruption Purged . | . . . Corruption Blocked . | . . . Effects 11 | . . 11 Message Errors 2 | . . 2 Matter Fused 1 | . . 1 Heat Flow Errors 1 | . . 1 Energy Discharges 3 | . . 3 Data Loss (minor) 1 | . . 1 Data Loss (major) 1 | . . 1 Misfires 1 | . . 1 Alerts 1 | . . 1 Overload Shots . | . . . Overflow Damage . | . . . Projectiles . | . . . Explosions . | . . . Melee . | . . . Knockbacks . | . . . Impact . | . . . Kinetic . | . . . Secondary . | . . . Self-Inflicted Damage . | . . . Shots . | . . . Rammed . | . . . Targets Rammed . | . . . Kicked . | . . . Crushed . | . . . Highest Temperature 201 | . 141 201 Average Temperature 55 | . 35 76 Received Heat Transfer 450 | . 276 174 Siege Activations . | . . . Robots Corrupted . | . . . Combat Hostiles . | . . . Parts Fried . | . . . Impact Corruptions . | . . . Robots Melted . | . . . Combat Hostiles . | . . . Parts Melted 1 | . 1 . Heat Transferred 1776 | . 1110 666 Parts Sabotaged . | . . . Parts Stolen . | . . . Parts Stripped . | . . . Power Chain Reactions . | . . . Alert | -11 -10 -10 ------- Run | Yrd Mat Min Peak Influence 250 | . 184 250 Initial 12 | . . 12 Average 55 | . 61 51 Maximum Alert Level 1 | . . 1 Low Security (%) 95 | 100 100 91 Level 1 4 | . . 8 Level 2 . | . . . Level 3 . | . . . Level 4 . | . . . Level 5 . | . . . High Security . | . . . Max Security . | . . . Squads Dispatched 1 | . 1 . Investigation . | . . . Extermination . | . . . Reinforcement 1 | . 1 . Assault . | . . . Garrison . | . . . Intercept . | . . . Searches Triggered . | . . . Construction Impeded . | . . . Haulers Reinforced . | . . . Active Scanning Responses . | . . . Cargo Convoy Interrupts . | . . . Stealth | -11 -10 -10 --------- Run | Yrd Mat Min Distress Signals . | . . . Communications Jammed . | . . . Distress Signals . | . . . Times Spotted 39 | . 28 11 Peak Tracking Total 5 | . 5 3 Tactical Retreats 2 | . . 2 Traps | -11 -10 -10 ------- Run | Yrd Mat Min Traps Triggered 2 | . 2 . Indirectly . | . . . Trap Hack Attempts . | . . . Triggered . | . . . Disarmed . | . . . Reprogrammed . | . . . Reused . | . . . Traps Extracted . | . . . Installed . | . . . Triggered 1 | . . 1 Machines | -11 -10 -10 ---------- Run | Yrd Mat Min Machines Disabled 1 | . . 1 Max in Single Turn 1 | . . 1 Machines Repaired . | . . . Machines Dismantled . | . . . Machines Sabotaged . | . . . Overloaded Fab Kills . | . . . Hacking | -11 -10 -10 --------- Run | Yrd Mat Min Machines Accessed 8 | . 6 2 Terminals 8 | . 6 2 Fabricators . | . . . Repair Stations . | . . . Recycling Units . | . . . Scanalyzers . | . . . Garrison Access . | . . . Total Hacks 22 | . 17 5 Successful 13 | . 9 4 Failed 9 | . 8 1 Catastrophic . | . . . Database Lockouts . | . . . Manual 20 | . 15 5 Terminals 22 | . 17 5 Fabricators . | . . . Repair Stations . | . . . Recycling Units . | . . . Scanalyzers . | . . . Garrison Access . | . . . Terminal Hacks 2 | . 2 . Unreport Threat 1 | . 1 . Locate Traps 1 | . 1 . Fabricator Hacks . | . . . Repair Station Hacks . | . . . Recycling Unit Hacks . | . . . Scanalyzer . | . . . Garrison Access Hacks . | . . . Unauthorized Hacks 11 | . 7 4 Terminals 11 | . 7 4 Botnet 4 | . 2 2 Skim 7 | . 5 2 Fabricators . | . . . Repair Stations . | . . . Recycling Units . | . . . Scanalyzers . | . . . Garrison Access . | . . . Data Cores Recovered . | . . . Used . | . . . Hacking Detections 8 | . 6 2 Full Trace Events . | . . . Feedback Events . | . . . Feedback Blocked . | . . . Robot Schematics Acquired . | . . . Robots Built . | . . . Authchips . | . . . Time . | . . . Total Robot Build Rating . | . . . Part Schematics Acquired . | . . . Parts Built . | . . . Authchips . | . . . Time . | . . . Total Part Build Rating . | . . . Parts Repaired . | . . . Time . | . . . Parts Recycled . | . . . Recycled Matter . | . . . Retrieved Matter . | . . . Retrieved Components . | . . . Parts Scanalyzed . | . . . Part Schematics Acquired . | . . . Parts Damaged . | . . . Bothacking | -11 -10 -10 ------------ Run | Yrd Mat Min Used RIF Installer . | . . . Robots Hacked . | . . . Non-combat . | . . . Combat . | . . . Robot Hacks Applied . | . . . Relay Couplers Released . | . . . Fabnet Peak Effective % . | . . . Robots Rewired . | . . . Allies Hacked . | . . . Hacks Repelled . | . . . Allies | -11 -10 -10 -------- Run | Yrd Mat Min Total Allies . | . . . Largest Group . | . . . Highest-Rated Group . | . . . Highest-Rated Ally . | . . . Total Orders . | . . . Ally Attacks . | . . . Total Damage . | . . . Kills . | . . . Allies Corrupted . | . . . Allies Melted . | . . . Intel | -11 -10 -10 ------- Run | Yrd Mat Min Robot Analysis Total . | . . . Derelict Logs Recovered . | . . . Drone Launches . | . . . Drone Recoveries . | . . . Exploration | -11 -10 -10 ------------- Run | Yrd Mat Min Turns Passed 3065 | 67 1488 1510 Spaces Moved 1005 | 36 809 160 Core 2 | 2 . . Treads 833 | 34 639 160 Legs 170 | . 170 . Wheels . | . . . Hover . | . . . Flight . | . . . Fastest Speed 50 | 50 120 160 Average Speed 153 | 153 151 160 Slowest Speed 160 | 160 160 160 Overloaded Moves . | . . . Propulsion Burnouts . | . . . Robots Hopped . | . . . Cave-ins Triggered 3 | . . 3 Exploration Rate (%) 44 | 4 96 33 Regions Visited 2 Branch Regions 1 Pre-discovered Areas . | . . . Known Exits Taken . | . . . Unknown Exits Taken 2 | 1 1 . Scrap Searched 1 | . . 1 Spaces Dug 7 | . 3 4 Terrain Destroyed 7 | . 3 4 Melee 7 | . 3 4 Projectile . | . . . AOE . | . . . Terrain Rammed . | . . . Walls Destroyed . | . . . Machines Disabled . | . . . Actions | -11 -10 -10 --------- Run | Yrd Mat Min Total 2360 | 45 962 1353 Wait 1190 | . 52 1138 Move 1003 | 35 808 160 Hop . | . . . Pick Up 23 | 4 13 6 Fast Attach 20 | 6 10 4 Attach 6 | . 3 3 Detach 2 | . 2 . Swap 8 | . 4 4 Drop 21 | . 14 7 Fire 80 | . 53 27 Melee 7 | . 3 4 Ram . | . . . Kick . | . . . Crush . | . . . Escape Stasis . | . . . Rewire . | . . . Trap . | . . . Miscellaneous . | . . . Route ------- -11/Scrapyard -10/Materials (discovered 5 exits: *Mat x3 / *Min / Sub) -10/Mines (discovered 1 exit: [Exi]) History --------- Turn | Location | Event 13 | -11/Scrapyard | Discovered new exit (range 15) 68 | -11/Scrapyard | Entered Materials 309 | -10/Materials | Build established: Mutant 316 | -10/Materials | Discovered new exit (range 4) 716 | -10/Materials | Discovered new exit (range 3) 838 | -10/Materials | Discovered new exit (range 16) 891 | -10/Materials | Discovered new exit (range 14) 961 | -10/Materials | Learned 4 Recycling zone layouts 1008 | -10/Materials | Learned 4 Subcaves zone layouts 1043 | -10/Materials | Learned 4 Recycling zone layouts 1088 | -10/Materials | Learned Materials emergency access door positions 1094 | -10/Materials | Identified exit to Subcaves 1094 | -10/Materials | Learned location of 1 exit from Materials 1095 | -10/Materials | Identified exit to Materials 1098 | -10/Materials | Learned Materials emergency access door positions 1112 | -10/Materials | Learned Storage security intel 1170 | -10/Materials | Learned Storage emergency access door positions 1556 | -10/Materials | Entered Mines 1822 | -10/Mines | Core integrity fell below 50% 1935 | -10/Mines | Assembled infested the area 1937 | -10/Mines | Discovered new exit (range 10) 1940 | -10/Mines | Assisted by a Guerilla fighting off Assembled 1963 | -10/Mines | Crushed by falling debris 2142 | -10/Mines | Build established: Scavenger-Mutant 3065 | -10/Mines | Crushed by falling debris 3065 | -10/Mines | Core integrity fell below 20% 3067 | -10/Mines | Crushed by falling debris 3067 | -10/Mines | Smashed by cave-in Last Messages --------------- 02113_ System corrupted: Heat flow error (+235). 02333_ 5HES1PQ6NN=U,OG0/AZ,WLF6,N 02367_ System corrupted: Matter fused (-6). 02591_ DW1AHTBVOCDW&3S4B2N7AH PMR3 02874_ System corrupted: Energy discharge (-40). 02901_ System corrupted: Component data lost. 02916_ System corrupted: Energy discharge (-40). 02948_ System corrupted: IFF burst signal emitted. 02983_ System corrupted: Energy discharge (-31). 03059_ System corrupted: FCS attempts to trigger Hvy. Assault Rifle. 03059_ System corrupted: Hvy. Assault Rifle misfires. 03065_ The unstable cave ceiling collapses. 03065_ Crushed by falling debris. 03065_ Lgt. Treads destroyed. 03065_ System corrupted by crushing effect (+4). 03067_ The unstable cave ceiling collapses. 03067_ Crushed by falling debris. Map ----- +----------------------------------------------------+ | | | | | | | ????????????????????????????????????????????? | | ????????????????????????????????????????????? | | ????????????????????????????????????????????? | | ????????????????????????????????????????????? | | ????????????????????????????????????????????? | | ????????????????????????????????????????????? | | ????????????????????????????????????????????? | | ????????????????????????????????????????????? | | ??????????????????## ??????????????????????? | | ??????????????????### ??????????????????????? | | ?????????????????? ##??????????????????????? | | ?????????????????## ##??????????????????????? | | ??????????????? ## ###?????????????????????? | | ???????????????### ######??????????????????? | | ??????????????### #####??????????????????? | | ????######???#### ??????????????????? | | ???##"!!"##?#### ##????????????????????? | | ???# "!|""##### ###????????????????????? | | ???# ! #### ##???????????????????????? | | ????#!!!*### #####?????????????????????? | | ??####++## #####?????????????????????? | | ?###= %] #####?????????????????????? | | ?## = ###@##?????????????????????? | | ?## #######?????????????????????? | | ?### ### #######???###???????????????? | | ?########### ###??#######???????????????? | | ??###<#?## ##?##### #??????????????? | | ????????## ### ##### ??????????????? | | ??????## #### #### #?????????????? | | ???###### #?#### ### #?????????????? | | ??############## ## ????????????? | | ??###T########## ????????????? | | ??## ### #####???????????????????? | | ??## ## ###??????????????????????? | | ??## ## =[###???????????????????????? | | ??## # *%[###???????????????????????? | | ??######## ##! !###????????????????????????? | | ??######## ##= =###????????????????????????? | | ??????#### # % ##?????????????????????????? | | ??????### ##?????????????????????????? | | ?????### ##?????????????????????????? | | ?????### ###?????????????????????????? | | ????### #####?????????????????????????? | | ????### #####??????????????????????????? | | ????## ###????????????????????????????? | | ????## ###?????????????????????????????? | | ????## ####?????????????????????????????? | +----------------------------------------------------+ Best States ------------- Heat Dissipation 39 Energy Generation 10 Energy Capacity 250 Matter Stores 300 Matter Capacity 300 Sight Range 16 Terrain Scan Density 10 Evasion (%) 55 Recoil Reduction 2 Item Schematics ----------------- None Robot Schematics ------------------ None Fabricated ------------ Nothing Alien Tech Used ----------------- None Achievements -------------- None Challenges ------------ None Game ------ Seed AngularRainbowGuard Manual? 0 Play Time 00:19:58 Cumulative 226.5 hours Start 2024.12.10 @ 14:58:51 End 2024.12.10 @ 15:18:45 Sessions 1 Manual Loads 0 Difficulty Rogue Special Mode None Game No. 162 Rogue 129 Adventurer 0 Explorer 33 Win Type - Total 4 Types 4/0/0/0/0/0/0/0/0 Lore% 39 Gallery% 63 Achievement% 61 Wizard Run 0 Options --------- Layout 2 ASCII 0 Keyboard 1 Movement Vi Keybinds 0 Fullscreen 0 Font 20/SmallcapsGlow Map View 50x44 Zoom Use 0% Tactical HUD 1 Map Filters NONE Filters LOW_CONTRAST(47,30,31) Steam 1 RUN: 79188383-2317-4cc6-90da-232c1e033697